bitfinex-derivatives/quotes_BTCF0:USTF0_20250422
["timestamp","ask_amount","ask_price","bid_price","bid_amount"]
[1745362379242,0.1078602,92822.0,92821.0,0.1076997]
[1745362379442,0.0001616,92822.0,92821.0,0.1076997]
[1745362379739,0.0001616,92822.0,92821.0,0.1096997]
[1745362379944,0.0538482,92824.0,92823.0,0.1615383]
[1745362380242,0.1615468,92824.0,92823.0,0.2796383]
[1745362380441,0.1615468,92824.0,92823.0,0.171947]
[1745362382134,0.1615468,92824.0,92823.0,0.1181]
[1745362382545,0.1615468,92824.0,92823.0,0.0606]
[1745362382752,0.1615468,92824.0,92823.0,0.0626]
[1745362383536,0.1615468,92824.0,92823.0,0.0596]
[1745362384045,0.1625468,92824.0,92823.0,0.0596]
[1745362385351,0.1077136,92809.0,92808.0,0.12858613]
[1745362385647,0.1077136,92809.0,92808.0,0.1077136]
[1745362386041,0.0538572,92809.0,92808.0,0.00796152]
[1745362386243,0.1077171,92806.0,92805.0,0.0624]
[1745362386649,0.1077171,92806.0,92805.0,0.2868176]
[1745362387251,0.1077171,92806.0,92805.0,0.2898176]
[1745362387442,0.1077171,92806.0,92805.0,0.2938176]
[1745362387643,0.1077171,92806.0,92805.0,0.30671141]
[1745362387949,0.0538578,92808.0,92807.0,0.107716]
[1745362388657,0.0538448,92830.0,92829.0,0.1076893]
[1745362389352,0.1076916,92828.0,92827.0,0.2879924]
[1745362390454,0.1076916,92828.0,92827.0,0.2889924]
[1745362390645,0.1076916,92828.0,92827.0,0.2899924]
[1745362392439,0.1076916,92828.0,92827.0,0.2889924]
[1745362394843,0.1076916,92828.0,92827.0,0.2879924]
[1745362395040,0.1076916,92828.0,92827.0,0.2889924]
[1745362397149,0.1076916,92828.0,92827.0,0.1813]
[1745362397654,0.0538448,92830.0,92827.0,0.1813]
[1745362397849,0.1721437,92832.0,92827.0,0.1823]
[1745362398453,0.1721437,92832.0,92827.0,0.2899924]
[1745362398646,0.1183,92832.0,92827.0,0.2899924]
[1745362398846,0.1076891,92831.0,92827.0,0.1823]
[1745362399044,0.1183,92832.0,92827.0,0.1813]
[1745362399351,0.0538459,92828.0,92827.0,0.002]
[1745362399552,0.3238459,92828.0,92827.0,0.002]
[1745362399749,0.4427459,92828.0,92827.0,0.003]
[1745362400149,0.6347459,92828.0,92827.0,0.002]
[1745362400552,0.0538517,92818.0,92805.0,0.01289381]
[1745362400855,0.0538546,92813.0,92808.0,0.1077138]
[1745362401042,0.1215,92812.0,92809.0,0.0628]
[1745362401551,0.1215,92812.0,92809.0,0.1705131]
[1745362401757,0.1215,92812.0,92809.0,0.0628]
[1745362402159,0.1215,92812.0,92811.0,0.1077113]
[1745362402457,0.2292106,92812.0,92809.0,0.1186567]
[1745362402649,0.2292106,92812.0,92810.0,0.0596]
[1745362402848,0.2292106,92812.0,92810.0,0.1673123]
[1745362403152,0.2292106,92812.0,92811.0,0.0621]
[1745362403658,0.1215,92812.0,92811.0,0.125]
[1745362404049,0.1215,92812.0,92811.0,0.2327113]
[1745362404553,0.1215,92812.0,92811.0,0.125]
[1745362404857,0.2292102,92812.0,92811.0,0.126]
[1745362405759,0.2292102,92812.0,92811.0,0.127]
[1745362405954,0.2292102,92812.0,92811.0,0.126]
[1745362407549,0.2292102,92812.0,92811.0,0.127]
[1745362407759,0.3608,92815.0,92814.0,0.1077078]
[1745362408154,0.0538412,92836.0,92812.0,0.0538546]
[1745362408155,0.062,92828.0,92824.0,0.1076962]
[1745362409148,0.169692,92828.0,92824.0,0.2305962]
[1745362409549,0.062,92828.0,92824.0,0.2315962]
[1745362409946,0.0538465,92827.0,92824.0,0.1239]
[1745362410159,0.1176,92827.0,92824.0,0.1249]
[1745362411656,0.16300963,92833.0,92824.0,0.2345962]
[1745362411852,0.058,92831.0,92824.0,0.2335962]
[1745362412257,0.058,92831.0,92824.0,0.2325962]
[1745362412450,0.058,92831.0,92824.0,0.2345962]
[1745362412860,0.058,92831.0,92824.0,0.2325962]
[1745362413060,0.058,92831.0,92824.0,0.2355962]
[1745362414463,0.058,92831.0,92824.0,0.2335962]
[1745362414664,0.058,92831.0,92824.0,0.2365962]
[1745362415064,0.13660372,92826.0,92825.0,0.1076951]
[1745362415366,0.13660372,92826.0,92825.0,0.2280951]
[1745362416458,0.13660372,92826.0,92825.0,0.2310951]
[1745362416762,1e-08,92833.0,92832.0,0.107687]
[1745362417064,0.1076642,92852.0,92850.0,0.1076661]
[1745362417272,0.061,92855.0,92850.0,0.1076661]
[1745362417754,0.1686611,92855.0,92850.0,0.2280661]
[1745362417962,0.061,92855.0,92850.0,0.2280661]
[1745362418165,0.061,92855.0,92850.0,0.24072352]
[1745362418767,0.061,92855.0,92850.0,0.24672352]
[1745362419060,0.061,92855.0,92850.0,0.24372352]
[1745362419260,0.061,92855.0,92850.0,0.24572352]
[1745362419664,0.061,92855.0,92850.0,0.24672352]
[1745362420163,0.061,92855.0,92850.0,0.24472352]
[1745362420861,0.061,92855.0,92850.0,0.24372352]
[1745362421061,0.061,92855.0,92850.0,0.24472352]
[1745362421370,0.061,92855.0,92850.0,0.24372352]
[1745362423755,0.061,92855.0,92850.0,0.24572352]
[1745362424256,0.061,92855.0,92850.0,0.24672352]
[1745362424660,0.1206,92855.0,92850.0,0.24672352]
[1745362425264,0.1206,92855.0,92850.0,0.24572352]
[1745362425466,0.1206,92855.0,92850.0,0.2330661]
[1745362426166,0.1206,92855.0,92850.0,0.2320661]
[1745362426858,0.1206,92855.0,92850.0,0.2310661]
[1745362427057,0.1206,92855.0,92850.0,0.2431522]
[1745362427263,0.10791114,92851.0,92850.0,0.003]
[1745362428168,0.10791114,92851.0,92847.0,0.2295694]
[1745362428169,0.1076684,92848.0,92847.0,0.2295694]
[1745362428364,0.1076684,92848.0,92847.0,0.1219]
[1745362428558,0.1076684,92848.0,92847.0,0.2295696]
[1745362428759,0.1076684,92848.0,92847.0,0.1219]
[1745362429782,0.1076684,92848.0,92847.0,0.2295696]
[1745362430462,0.1076684,92848.0,92847.0,0.1219]
[1745362430865,0.0538395,92839.0,92821.0,0.36241597]
[1745362431063,0.1076897,92831.0,92830.0,0.1692873]
[1745362431272,0.1076897,92831.0,92830.0,0.2273873]
[1745362431570,0.1167,92832.0,92831.0,0.1076881]
[1745362431770,0.164787,92832.0,92831.0,0.1076881]
[1745362431965,0.1076778,92841.0,92831.0,0.13176095]
[1745362432159,0.0538354,92846.0,92831.0,0.13176095]
[1745362432160,0.1647785,92840.0,92839.0,0.1076788]
[1745362432472,0.1647777,92840.0,92839.0,0.1076788]
[1745362433070,0.0538355,92846.0,92845.0,0.1076719]
[1745362433668,0.0538342,92848.0,92847.0,0.1076696]
[1745362434060,0.00024624,92851.0,92847.0,0.0538348]
[1745362434261,0.00024624,92851.0,92850.0,0.1076661]
[1745362435267,0.10791114,92851.0,92850.0,0.1076661]
[1745362435471,0.16651114,92851.0,92850.0,0.1076661]
[1745362435663,0.16651114,92851.0,92850.0,0.1086661]
[1745362436265,0.16651114,92851.0,92850.0,0.2154661]
[1745362436767,0.16651114,92851.0,92850.0,0.1078]
[1745362436970,0.16651114,92851.0,92850.0,0.001]
[1745362437468,0.05884624,92851.0,92850.0,0.1076661]
[1745362437666,0.16651114,92851.0,92850.0,0.1076661]
[1745362440565,0.1076672,92849.0,92848.0,0.0584]
[1745362440766,0.16677874,92851.0,92850.0,0.1076661]
[1745362441065,0.05884624,92851.0,92850.0,0.1076661]
[1745362441371,0.16651114,92851.0,92850.0,0.1076661]
[1745362441871,0.00024624,92851.0,92848.0,0.1132337]
[1745362442061,0.1076672,92849.0,92848.0,0.0594]
[1745362442262,0.1076672,92849.0,92848.0,0.0584]
[1745362442770,0.1648672,92849.0,92848.0,0.0584]
[1745362443067,0.1076754,92842.0,92835.0,0.0538417]
[1745362443278,0.1076754,92842.0,92840.0,0.0577]
[1745362443467,0.1076754,92842.0,92841.0,0.1078381]
[1745362445672,0.1076754,92842.0,92841.0,0.1088381]
[1745362446366,0.1079068,92842.0,92841.0,0.1088381]
[1745362447164,0.0002314,92842.0,92841.0,0.1088381]
[1745362447373,0.0002314,92842.0,92841.0,0.1078381]
[1745362448475,0.0002314,92842.0,92841.0,0.1088381]
[1745362449580,0.1079068,92842.0,92841.0,0.0011616]
[1745362450170,0.2213068,92842.0,92841.0,0.0011616]
[1745362450580,0.2213068,92842.0,92841.0,0.0001616]
[1745362450581,0.5113068,92842.0,92841.0,0.0001616]
[1745362450983,0.107687,92832.0,92831.0,0.3608]
[1745362451175,0.1076986,92822.0,92821.0,0.00161597]
[1745362451375,0.1076986,92822.0,92821.0,0.10931567]
[1745362451976,0.1076986,92822.0,92821.0,0.1215943]
[1745362452975,0.1076986,92822.0,92821.0,0.1235943]
[1745362453570,0.1076986,92822.0,92821.0,0.1255943]
[1745362456784,0.1076986,92822.0,92821.0,0.1833943]
[1745362459487,0.0551,92823.0,92822.0,0.1076986]
[1745362459686,0.0551,92823.0,92822.0,0.2208986]
[1745362459887,0.1627974,92823.0,92822.0,0.2208986]
[1745362460391,0.0551,92823.0,92822.0,0.2208986]
[1745362460592,0.1627974,92823.0,92822.0,0.2228986]
[1745362461089,0.1627974,92823.0,92822.0,0.2248986]
[1745362461295,0.0551,92823.0,92822.0,0.2248986]
[1745362462994,0.1627974,92823.0,92822.0,0.2248986]
[1745362464798,0.1627974,92823.0,92822.0,0.2228986]
[1745362467600,0.1627974,92823.0,92822.0,0.1152]
[1745362467796,0.1627974,92823.0,92822.0,0.0568]
[1745362468394,0.1627974,92823.0,92822.0,0.002]
[1745362469112,0.107709,92813.0,92811.0,0.1077107]
[1745362469308,0.1077148,92808.0,92807.0,0.00807424]
[1745362469502,0.0538642,92797.0,92794.0,0.1122]
[1745362469801,0.0538539,92814.0,92794.0,0.1122]
[1745362469802,0.1644165,92807.0,92806.0,0.1077171]
[1745362470003,0.0538523,92817.0,92805.0,0.0564]
[1745362470211,0.0538494,92822.0,92821.0,0.1076986]
[1745362470503,0.4684979,92823.0,92822.0,0.1076986]
[1745362470703,0.1076986,92822.0,92821.0,0.0557]
[1745362470909,0.2271986,92822.0,92821.0,0.0557]
[1745362471904,0.2271986,92822.0,92821.0,0.0577]
[1745362472509,0.2271986,92822.0,92821.0,0.002]
[1745362473705,0.2271986,92822.0,92821.0,0.001]
[1745362473903,0.1077032,92818.0,92817.0,0.1634039]
[1745362474301,0.1077032,92818.0,92817.0,0.0557]
[1745362474802,0.1077183,92806.0,92805.0,0.1077178]
[1745362475006,0.1077183,92806.0,92805.0,0.1660178]
[1745362476908,0.1077162,92807.0,92806.0,0.107716]
[1745362477305,0.1077162,92807.0,92806.0,0.166116]
[1745362478007,0.1077162,92807.0,92806.0,0.171116]
[1745362478210,0.1077162,92807.0,92806.0,0.175116]
[1745362479609,0.0538422,92835.0,92807.0,0.0538578]
[1745362479913,0.18056073,92845.0,92806.0,0.0674]
[1745362479914,0.1076947,92826.0,92825.0,0.1076939]
[1745362480103,0.1615422,92826.0,92825.0,0.1076939]
[1745362480803,0.2180422,92826.0,92825.0,0.1076939]
[1745362481610,0.1076962,92824.0,92823.0,0.161545]
[1745362482006,0.1076962,92824.0,92823.0,0.17344514]
[1745362483312,0.1076962,92824.0,92823.0,0.161545]
[1745362483710,0.1076962,92824.0,92823.0,0.17330182]
[1745362484013,0.1076962,92824.0,92823.0,0.162545]
[1745362485012,0.1076962,92824.0,92823.0,0.163545]
[1745362487014,0.1103469,92826.0,92823.0,0.163545]
[1745362487015,0.0565,92826.0,92823.0,0.06807712]
[1745362487216,0.0603,92833.0,92830.0,0.1076893]
[1745362487612,0.1076876,92832.0,92830.0,0.1076893]
[1745362488218,0.52516072,92845.0,92830.0,0.1076893]
[1745362488511,0.52516072,92845.0,92830.0,0.4684893]
[1745362489104,0.1076739,92844.0,92830.0,0.6604893]
[1745362489311,0.52516072,92845.0,92830.0,0.6604893]
[1745362489312,0.1076742,92843.0,92830.0,0.6604893]
[1745362489511,0.1076742,92843.0,92841.0,0.1076765]
[1745362489705,0.1079068,92842.0,92841.0,0.1076765]
[1745362490108,0.0002314,92842.0,92841.0,0.1076765]
[1745362490514,0.0002314,92842.0,92841.0,0.2231765]
[1745362490910,0.0002314,92842.0,92841.0,0.2241765]
[1745362491111,0.0002314,92842.0,92841.0,0.2251765]
[1745362491306,0.1079068,92842.0,92841.0,0.2251765]
[1745362491611,0.1079068,92842.0,92841.0,0.2312847]
[1745362491821,0.1079068,92842.0,92841.0,0.2332847]
[1745362492321,0.0002314,92842.0,92841.0,0.2332847]
[1745362492520,0.1076744,92846.0,92845.0,0.1615036]
[1745362493615,0.0576744,92846.0,92845.0,0.2206036]
[1745362494017,0.0576744,92846.0,92845.0,0.2216036]
[1745362494720,0.0576744,92846.0,92845.0,0.2226036]
[1745362497920,0.0576744,92846.0,92845.0,0.1149352]
[1745362501522,0.0603,92850.0,92846.0,0.0538353]
[1745362501714,0.2218024,92850.0,92849.0,0.1076672]
[1745362501920,0.0603,92850.0,92849.0,0.1076672]
[1745362502117,0.1679661,92850.0,92849.0,0.1076672]
[1745362502415,0.0001616,92851.0,92850.0,0.1076661]
[1745362503023,0.0001616,92851.0,92850.0,0.1683661]
[1745362503729,0.0001616,92851.0,92849.0,0.0577]
[1745362504027,0.1076661,92850.0,92849.0,0.0577]
[1745362504221,0.2827661,92850.0,92849.0,0.0577]
[1745362504424,0.2827661,92850.0,92849.0,0.1653672]
[1745362504927,0.0538358,92846.0,92832.0,0.0538433]
[1745362505124,0.107673,92844.0,92843.0,0.1147]
[1745362505320,0.1076754,92842.0,92841.0,0.0081082]
[1745362505622,0.1076765,92841.0,92836.0,0.0538411]
[1745362505825,0.1076765,92841.0,92833.0,0.0538427]
[1745362505826,0.2231765,92841.0,92840.0,0.1078393]
[1745362507132,0.1639765,92841.0,92840.0,0.1088393]
[1745362507332,0.0563,92841.0,92840.0,0.1098393]
[1745362507626,0.0563,92841.0,92840.0,0.1088393]
[1745362507825,0.1639765,92841.0,92840.0,0.1088393]
[1745362509024,0.1649765,92841.0,92840.0,0.1078393]
[1745362509227,0.1649765,92841.0,92840.0,0.1098393]
[1745362509831,0.1639765,92841.0,92840.0,0.1118393]
[1745362510330,0.1639765,92841.0,92840.0,0.1098393]
[1745362510531,0.1639765,92841.0,92840.0,0.1078393]
[1745362518636,0.1134331,92850.0,92849.0,0.1076672]
[1745362518837,0.1717331,92850.0,92849.0,0.1076672]
[1745362519430,0.1717331,92850.0,92849.0,0.2205672]
[1745362519730,0.0583,92850.0,92849.0,0.2205672]
[1745362520035,0.1659661,92850.0,92849.0,0.2205672]
[1745362520231,0.1659661,92850.0,92849.0,0.22846286]
[1745362520938,0.0583,92850.0,92849.0,0.22846286]
[1745362521434,0.1659661,92850.0,92849.0,0.22846286]
[1745362521638,0.0583,92850.0,92849.0,0.22846286]
[1745362524432,0.1659661,92850.0,92849.0,0.17126286]
[1745362524627,0.2233661,92850.0,92849.0,0.17126286]
[1745362524831,0.2233661,92850.0,92849.0,0.17226286]
[1745362525035,0.2233661,92850.0,92849.0,0.00889566]
[1745362525434,0.2243661,92850.0,92849.0,0.00889566]
[1745362526340,0.2243661,92850.0,92849.0,0.00789566]
[1745362526535,0.1076684,92848.0,92847.0,0.0556]
[1745362527537,0.1076684,92848.0,92847.0,0.1632696]
[1745362528239,0.1086684,92848.0,92847.0,0.1632696]
[1745362528833,0.1096684,92848.0,92847.0,0.1632696]
[1745362529234,0.002,92848.0,92847.0,0.17129465]
[1745362529735,0.001,92848.0,92847.0,0.17129465]
[1745362530335,0.001,92848.0,92847.0,0.17229465]
[1745362530738,0.001,92848.0,92847.0,0.17129465]
[1745362530942,0.0552,92850.0,92849.0,0.1076672]
[1745362531537,0.1628661,92850.0,92849.0,0.1076672]
[1745362531742,0.1628661,92850.0,92849.0,0.1619672]
[1745362531943,0.1628661,92850.0,92849.0,0.1629672]
[1745362532449,0.0552,92850.0,92849.0,0.1629672]
[1745362532645,0.0001616,92851.0,92850.0,0.1076661]
[1745362532943,0.0001616,92851.0,92850.0,0.1632661]
[1745362532944,0.1078265,92851.0,92850.0,0.1632661]
[1745362534141,0.1078265,92851.0,92850.0,0.1642661]
[1745362534742,0.1078265,92851.0,92850.0,0.1652661]
[1745362536946,0.1078265,92851.0,92850.0,0.1642661]
[1745362537148,0.1078265,92851.0,92850.0,0.1652661]
[1745362537352,0.1633265,92851.0,92850.0,0.1652661]
[1745362537846,0.1643265,92851.0,92850.0,0.1642661]
[1745362538452,0.1633265,92851.0,92850.0,0.1642661]
[1745362538644,0.1633265,92851.0,92850.0,0.1652661]
[1745362539148,0.1633265,92851.0,92850.0,0.1642661]
[1745362539353,0.0556616,92851.0,92850.0,0.1642661]
[1745362539951,0.0001616,92851.0,92850.0,0.1642661]
[1745362540745,0.0001616,92851.0,92850.0,0.1632661]
[1745362540946,0.13711237,92865.0,92864.0,0.1076498]
[1745362541147,0.3608,92875.0,92871.0,0.1076417]
[1745362541752,1e-08,92873.0,92871.0,0.8261177]
[1745362541942,0.3608,92906.0,92889.0,0.1076209]
[1745362542142,0.18958517,92890.0,92889.0,0.4684209]
[1745362542344,0.18958517,92890.0,92889.0,0.48030976]
[1745362542951,0.18958517,92890.0,92889.0,0.59570976]
[1745362543147,0.38158517,92890.0,92889.0,0.59570976]
[1745362543848,0.0538104,92889.0,92888.0,0.11965249]
[1745362544044,0.1640104,92889.0,92888.0,0.17615249]
[1745362545157,0.1076301,92881.0,92880.0,0.4725153]
[1745362545651,0.1076301,92881.0,92880.0,0.4146153]
[1745362546062,0.1076336,92878.0,92877.0,0.0565]
[1745362546255,0.0538236,92867.0,92866.0,0.4146229]
[1745362546557,0.0538236,92867.0,92866.0,0.42650396]
[1745362547153,0.0538236,92867.0,92866.0,0.06570396]
[1745362547560,0.1651236,92867.0,92866.0,0.06570396]
[1745362547951,0.1651236,92867.0,92866.0,0.07070396]
[1745362548755,0.1651236,92867.0,92866.0,0.07170396]
[1745362549153,0.1651236,92867.0,92866.0,0.002]
[1745362549461,0.1651236,92867.0,92866.0,0.003]
[1745362549653,0.1651236,92867.0,92866.0,0.1106475]
[1745362550050,0.3608,92872.0,92871.0,0.1076417]
[1745362550861,0.4684406,92872.0,92871.0,0.1076417]
[1745362551362,0.1076406,92872.0,92871.0,0.1086417]
[1745362551965,0.1076406,92872.0,92871.0,0.1076417]
[1745362552558,0.1086406,92872.0,92871.0,0.1076417]
[1745362553058,0.1076406,92872.0,92871.0,0.1076417]
[1745362553260,0.1086406,92872.0,92871.0,0.1076417]
[1745362553456,0.1096406,92872.0,92871.0,0.1076417]
[1745362556152,0.1086406,92872.0,92871.0,0.1076417]
[1745362556358,0.1096406,92872.0,92871.0,0.1076417]
[1745362556553,0.1086406,92872.0,92871.0,0.1076417]
[1745362556953,0.1076406,92872.0,92871.0,0.1076417]
[1745362557154,0.1086406,92872.0,92871.0,0.1626417]
[1745362557362,0.1086406,92872.0,92871.0,0.055]
[1745362557560,0.1076406,92872.0,92871.0,0.055]
[1745362557865,0.0538215,92870.0,92858.0,0.4146278]
[1745362558059,0.1076498,92864.0,92859.0,0.055]
[1745362558255,0.1076498,92864.0,92863.0,0.10781251]
[1745362559164,0.1076498,92864.0,92863.0,0.11938277]
[1745362559355,0.055,92864.0,92863.0,0.11938277]
[1745362559554,0.0551,92869.0,92868.0,0.1076452]
[1745362559756,0.001,92870.0,92869.0,0.107644]
[1745362559953,0.001,92870.0,92869.0,0.165844]
[1745362560159,0.1086429,92870.0,92869.0,0.165844]
[1745362560364,0.1076429,92870.0,92869.0,0.165844]
[1745362560760,0.1076429,92870.0,92869.0,0.219844]
[1745362561267,0.1626429,92870.0,92869.0,0.220844]
[1745362562766,0.1646429,92870.0,92869.0,0.219844]
[1745362563359,0.1636429,92870.0,92869.0,0.219844]
[1745362563568,0.1636429,92870.0,92869.0,0.1122]
[1745362564172,0.1636429,92870.0,92869.0,0.219844]
[1745362566767,0.1636429,92870.0,92869.0,0.1122]
[1745362567357,0.1636429,92870.0,92869.0,0.054]
[1745362568463,0.1636429,92870.0,92869.0,0.1083]
[1745362569364,0.5244429,92870.0,92869.0,0.1083]
[1745362569958,0.5244429,92870.0,92869.0,0.215944]
[1745362570371,0.3618,92870.0,92869.0,0.215944]
[1745362571871,0.3608,92870.0,92869.0,0.216944]
[1745362572070,0.1076429,92870.0,92869.0,0.216944]
[1745362572365,0.1076429,92870.0,92869.0,0.215944]
[1745362572765,0.1076429,92870.0,92869.0,0.1083]
[1745362573470,0.1076429,92870.0,92869.0,0.1093]
[1745362574170,0.4684429,92870.0,92869.0,0.1093]
[1745362574759,0.4704429,92870.0,92869.0,0.1083]
[1745362575367,0.4704429,92870.0,92869.0,0.054]
[1745362575670,0.1076684,92848.0,92842.0,0.00161561]
[1745362575871,0.1076719,92845.0,92844.0,0.0544]
[1745362577866,0.1076719,92845.0,92844.0,0.0594]
[1745362578569,0.1076719,92845.0,92844.0,0.0654]
[1745362578761,0.1076719,92845.0,92844.0,0.1185]
[1745362578967,0.1076719,92845.0,92844.0,0.174]
[1745362579164,0.1076719,92845.0,92844.0,0.172]
[1745362579573,0.1076719,92845.0,92844.0,0.17900185]
[1745362580767,0.1076719,92845.0,92844.0,0.28667485]
[1745362581071,0.1076719,92845.0,92844.0,0.28567485]
[1745362590071,0.1076719,92845.0,92844.0,0.28367485]
[1745362590871,0.0531,92847.0,92846.0,0.1076707]
[1745362591081,0.10782291,92854.0,92853.0,0.1076626]
[1745362591685,0.00016151,92854.0,92853.0,0.1076626]
[1745362592071,0.00016151,92854.0,92853.0,0.1606626]
[1745362592877,0.10782291,92854.0,92853.0,0.1606626]
[1745362593079,0.00016151,92854.0,92853.0,0.1606626]
[1745362593785,0.00016151,92854.0,92853.0,0.1616626]
[1745362594278,0.00016151,92854.0,92853.0,0.1606626]
[1745362594481,0.00016151,92854.0,92853.0,0.1616626]
[1745362595879,0.10782291,92854.0,92853.0,0.1616626]
[1745362599982,0.00016151,92854.0,92853.0,0.1616626]
[1745362601487,0.10782291,92854.0,92853.0,0.1616626]
[1745362608885,0.10782291,92854.0,92853.0,0.1086626]
[1745362609891,0.15792291,92854.0,92853.0,0.1086626]
[1745362611890,0.51872291,92854.0,92853.0,0.001]
[1745362612184,0.1076823,92836.0,92823.0,0.00538657]
[1745362612389,0.1076823,92836.0,92835.0,0.0082609]
[1745362612590,0.107687,92832.0,92831.0,0.16400143]
[1745362613188,0.299687,92832.0,92831.0,0.16400143]
[1745362613387,0.348387,92832.0,92831.0,0.16400143]
[1745362614492,0.348387,92832.0,92831.0,0.16700143]
[1745362614691,0.348387,92832.0,92831.0,0.16400143]
[1745362614901,0.348387,92832.0,92831.0,0.16700143]
[1745362615195,0.348387,92832.0,92831.0,0.17100143]
[1745362615890,0.348387,92832.0,92831.0,0.17902167]
[1745362616492,0.348387,92832.0,92831.0,0.01502024]
[1745362616695,0.1076962,92824.0,92817.0,0.107704]
[1745362616890,0.1076962,92824.0,92818.0,0.1077029]
[1745362617598,0.2078962,92824.0,92818.0,0.1077029]
[1745362617791,0.2078962,92824.0,92813.0,0.102]
[1745362617991,0.2078962,92824.0,92823.0,0.01038657]
[1745362618189,0.1077078,92814.0,92813.0,0.0511]
[1745362618986,0.1077078,92814.0,92813.0,0.05902008]
[1745362618987,0.2575078,92814.0,92813.0,0.05902008]
[1745362619190,0.25760356,92814.0,92813.0,0.05902008]
[1745362619385,0.25760356,92814.0,92813.0,0.06302008]
[1745362619994,0.20670356,92814.0,92813.0,0.05902008]
[1745362620192,0.20670356,92814.0,92813.0,0.06102008]
[1745362620787,0.20670356,92814.0,92813.0,0.16872908]
[1745362621592,0.20670356,92814.0,92813.0,0.16672908]
[1745362621794,0.20670356,92814.0,92813.0,0.16972908]
[1745362622997,0.20670356,92814.0,92813.0,0.01092008]
[1745362623303,0.1077171,92806.0,92805.0,0.0512]
[1745362623496,0.1077183,92805.0,92804.0,0.00177789]
[1745362623795,0.1077218,92802.0,92799.0,0.1077241]
[1745362623988,0.1077218,92802.0,92800.0,0.0496]
[1745362624393,0.049,92805.0,92804.0,0.1077194]
[1745362624599,7.761e-05,92806.0,92804.0,0.1077194]
[1745362624600,0.10779671,92806.0,92805.0,0.1077183]
[1745362624896,0.10779671,92806.0,92805.0,0.1573183]
[1745362625604,0.10779671,92806.0,92805.0,0.0496]
[1745362625797,0.1077218,92802.0,92801.0,0.3608]
[1745362626103,0.1077218,92802.0,92801.0,0.4685229]
[1745362627202,0.1077218,92802.0,92801.0,0.3608]
[1745362627597,0.1097218,92802.0,92801.0,0.3608]
[1745362628103,0.1107218,92802.0,92801.0,0.3648]
[1745362628605,0.1097218,92802.0,92801.0,0.3648]
[1745362628803,0.1117218,92802.0,92801.0,0.3608]
[1745362629098,0.1077287,92796.0,92795.0,0.00016161]
[1745362629900,0.1077287,92796.0,92795.0,0.05326161]
[1745362630302,0.10782988,92796.0,92795.0,0.06135636]
[1745362630603,0.10782988,92796.0,92795.0,0.07316844]
[1745362630899,0.10782988,92796.0,92795.0,0.00825636]
[1745362631293,0.10882988,92796.0,92795.0,0.00825636]
[1745362631692,0.10982988,92796.0,92795.0,0.00825636]
[1745362632298,0.3597287,92796.0,92795.0,0.00825636]
[1745362632498,0.3617287,92796.0,92795.0,0.00825636]
[1745362633194,0.36181633,92796.0,92795.0,0.00825636]
[1745362633395,0.36186326,92796.0,92795.0,0.00825636]
[1745362633707,0.1077334,92792.0,92791.0,0.3608]
[1745362633894,0.10785455,92792.0,92791.0,0.3608]
[1745362634902,0.10885455,92792.0,92791.0,0.3608]
[1745362635502,0.10985455,92792.0,92791.0,0.3608]
[1745362635802,0.10985455,92792.0,92791.0,0.36904466]
[1745362637795,0.11385455,92792.0,92791.0,0.36904466]
[1745362638001,0.11685455,92792.0,92791.0,0.36904466]
[1745362638401,0.00912115,92792.0,92791.0,0.47677916]
[1745362639203,0.00912115,92792.0,92791.0,0.66877916]
[1745362639503,0.00612115,92792.0,92791.0,0.66877916]
[1745362640103,0.00512115,92792.0,92791.0,0.66877916]
[1745362641103,0.10785455,92792.0,92791.0,0.66877916]
[1745362641309,0.10985455,92792.0,92791.0,0.66877916]
[1745362641908,0.10785455,92792.0,92791.0,0.66877916]
[1745362642097,0.10885455,92792.0,92791.0,0.66877916]
[1745362642605,0.10885455,92792.0,92791.0,0.71787916]
[1745362643505,0.10885455,92792.0,92791.0,0.61014466]
[1745362644209,0.10885455,92792.0,92791.0,0.41814466]
[1745362644598,0.16205455,92792.0,92791.0,0.41814466]
[1745362645403,0.16605455,92792.0,92791.0,0.41814466]
[1745362645803,0.16605455,92792.0,92775.0,0.05926565]
[1745362645804,0.0538702,92786.0,92780.0,0.00161669]
[1745362646005,0.1077461,92781.0,92780.0,0.05091669]
[1745362646801,0.2081461,92781.0,92780.0,0.05091669]
[1745362648109,0.2091461,92781.0,92780.0,0.058823]
[1745362648415,0.2101461,92781.0,92780.0,0.058823]
[1745362649006,0.2111461,92781.0,92780.0,0.058823]
[1745362649612,0.2101461,92781.0,92780.0,0.058823]
[1745362649908,0.1619461,92781.0,92780.0,0.058823]
[1745362650116,0.1619461,92781.0,92780.0,0.1665703]
[1745362650308,0.00013565,92785.0,92784.0,0.1077427]
[1745362651117,0.00013565,92785.0,92784.0,0.2997427]
[1745362651505,0.00113565,92785.0,92784.0,0.2997427]
[1745362652009,0.00213565,92785.0,92784.0,0.2997427]
[1745362652207,0.10987715,92785.0,92784.0,0.2997427]
[1745362656514,0.0538577,92808.0,92784.0,0.660576]
[1745362656712,0.1077241,92800.0,92799.0,0.4685252]
[1745362656908,0.1077241,92800.0,92799.0,0.3608]
[1745362657510,0.1077241,92800.0,92799.0,0.4685252]
[1745362658515,0.1107241,92800.0,92799.0,0.4685252]
[1745362658920,0.1137241,92800.0,92799.0,0.4685252]
[1745362659616,0.006,92800.0,92799.0,0.4685252]
[1745362659818,0.0487,92822.0,92808.0,0.1077148]
[1745362660018,0.0516,92815.0,92808.0,0.4685148]
[1745362660321,0.1076975,92826.0,92825.0,0.1615352]
[1745362660518,0.1076975,92826.0,92825.0,0.0538459]
[1745362661408,0.1077009,92820.0,92819.0,0.3608]
[1745362662321,0.2085009,92820.0,92819.0,0.3608]
[1745362663113,0.2085009,92820.0,92819.0,0.468502]
[1745362663509,0.2115009,92820.0,92819.0,0.468502]
[1745362663718,0.2135009,92820.0,92819.0,0.468502]
[1745362664719,0.2155009,92820.0,92819.0,0.468502]
[1745362665021,0.2145009,92820.0,92819.0,0.3608]
[1745362665416,0.2125009,92820.0,92819.0,0.3608]
[1745362665616,0.2165009,92820.0,92819.0,0.3608]
[1745362666216,0.2155009,92820.0,92819.0,0.3608]
[1745362666622,0.1077044,92817.0,92816.0,0.00016161]
[1745362666916,0.1077136,92809.0,92808.0,0.3608]
[1745362667121,0.1077183,92805.0,92804.0,0.0515]
[1745362667511,0.1077241,92800.0,92799.0,0.0516]
[1745362667710,0.1077241,92800.0,92799.0,0.1593252]
[1745362668817,0.1077241,92800.0,92799.0,0.1613252]
[1745362669016,0.1077241,92800.0,92799.0,0.0536]
[1745362669216,0.1077241,92800.0,92799.0,0.002]
[1745362669416,0.1603241,92800.0,92799.0,0.002]
[1745362670019,0.1603241,92800.0,92799.0,0.0552]